fUST/lending_fUST_20251212
["ID","MTS","AMOUNT","RATE_DAILY","PERIOD"]
[398289760,1765492249847,-1065.96,0.00012876,2]
[398289761,1765492249856,-5028.13,0.00012876,2]
[398289762,1765492249865,-1066.17,0.00012876,2]
[398289763,1765492249875,-715.39,0.00012876,2]
[398289764,1765492249885,-500.0,0.00012876,2]
[398289765,1765492249893,-1148.17,0.00012876,2]
[398289766,1765492249903,-500.0,0.00012876,2]
[398289767,1765492249913,-500.0,0.00012876,2]
[398289768,1765492249922,-4570.96,0.00012876,2]
[398289769,1765492249935,-183.17572194,0.00012876,2]
[398289770,1765492249944,-500.0,0.00012876,2]
[398289771,1765492249954,-629.13,0.00012876,2]
[398289772,1765492249963,-500.0,0.00012876,2]
[398289773,1765492249973,-1935.41,0.00012876,2]
[398289774,1765492249982,-500.0,0.00012876,2]
[398289775,1765492249992,-9916.36,0.00012876,2]
[398289776,1765492250001,-500.0,0.00012876,2]
[398289777,1765492250010,-606.21,0.00012876,2]
[398289778,1765492250020,-500.0,0.00012876,2]
[398289779,1765492250029,-9942.55,0.00012876,2]
[398289780,1765492250038,-500.0,0.00012876,2]
[398289781,1765492250048,-500.0,0.00012876,2]
[398289782,1765492250057,-500.0,0.00012876,2]
[398289783,1765492250067,-500.0,0.00012876,2]
[398289784,1765492250076,-521.23,0.00012876,2]
[398289785,1765492250086,-1087.63,0.00012876,2]
[398289786,1765492250096,-612.83739619,0.00012876,2]
[398289787,1765492250105,-1137.13,0.00012876,2]
[398289788,1765492250115,-500.0,0.00012876,2]
[398289789,1765492250125,-500.0,0.00012876,2]
[398289790,1765492250134,-5298.64,0.00012876,2]
[398289791,1765492250143,-3510.79,0.00012876,2]
[398289792,1765492250152,-500.0,0.00012876,2]
[398289793,1765492250165,-500.0,0.00012876,2]
[398289794,1765492250174,-500.0,0.00012876,2]
[398289795,1765492250184,-1238.39,0.00012876,2]
[398289796,1765492250193,-500.0,0.00012876,2]
[398289797,1765492250203,-500.0,0.00012876,2]
[398289798,1765492250213,-500.0,0.00012876,2]
[398289799,1765492250221,-544.39,0.00012876,2]
[398289800,1765492250230,-1288.39,0.00012876,2]
[398289801,1765492250241,-500.0,0.00012876,2]
[398289802,1765492250250,-651.57,0.00012876,2]
[398289803,1765492250260,-864.05,0.00012876,2]
[398289804,1765492250269,-500.0,0.00012876,2]
[398289805,1765492250279,-500.0,0.00012876,2]
[398289806,1765492250288,-2328.95,0.00012876,2]
[398289807,1765492250298,-287.869943,0.00012876,2]
[398289808,1765492250307,-500.0,0.00012876,2]
[398289809,1765492250316,-500.0,0.00012876,2]
[398289810,1765492250326,-500.0,0.00012876,2]
[398289811,1765492250335,-500.0,0.00012876,2]
[398289812,1765492250344,-500.0,0.00012876,2]
[398289813,1765492250353,-500.0,0.00012876,2]
[398289814,1765492250363,-500.0,0.00012876,2]
[398289815,1765492250372,-500.0,0.00012876,2]
[398289816,1765492250382,-6306.12,0.00012876,2]
[398289817,1765492250391,-657.12,0.00012876,2]
[398289818,1765492250401,-500.0,0.00012876,2]
[398289819,1765492250411,-500.0,0.00012876,2]
[398289820,1765492250421,-500.0,0.00012876,2]
[398289821,1765492250430,-500.0,0.00012876,2]
[398289822,1765492250439,-1216.77,0.00012876,2]
[398289823,1765492250448,-500.0,0.00012876,2]
[398289824,1765492250458,-686.15,0.00012876,2]
[398289825,1765492250471,-1382.79,0.00012876,2]
[398289826,1765492250481,-500.0,0.00012876,2]
[398289827,1765492250490,-500.0,0.00012876,2]
[398289828,1765492250499,-1063.49,0.00012876,2]
[398289829,1765492250509,-500.0,0.00012876,2]
[398289830,1765492250518,-500.0,0.00012876,2]
[398289831,1765492250527,-5462.9,0.00012876,2]
[398289832,1765492250586,-509.85,0.00012876,2]
[398289833,1765492250596,-500.0,0.00012876,2]
[398289834,1765492250605,-500.0,0.00012876,2]
[398289835,1765492250614,-1000.0,0.00012876,2]
[398289836,1765492250623,-500.0,0.00012876,2]
[398289837,1765492250632,-976.16,0.00012876,2]
[398289838,1765492250641,-500.0,0.00012876,2]
[398289839,1765492250650,-500.0,0.00012876,2]
[398289840,1765492250660,-500.0,0.00012876,2]
[398289841,1765492250671,-500.0,0.00012876,2]
[398289842,1765492250680,-5061.62,0.00012876,2]
[398289843,1765492250690,-500.0,0.00012876,2]
[398289844,1765492250699,-500.0,0.00012876,2]
[398289845,1765492250711,-916.38,0.00012876,2]
[398289846,1765492250720,-500.0,0.00012876,2]
[398289847,1765492250730,-500.0,0.00012876,2]
[398289848,1765492250739,-1309.75,0.00012876,2]
[398289849,1765492250749,-722.23,0.00012876,2]
[398289850,1765492250759,-11192.4,0.00012876,2]
[398289851,1765492250768,-500.0,0.00012876,2]
[398289852,1765492250777,-1263.72,0.00012876,2]
[398289853,1765492250786,-1202.58,0.00012876,2]
[398289854,1765492250796,-500.0,0.00012876,2]
[398289855,1765492250805,-437.98028466,0.00012876,2]
[398289856,1765492250814,-500.0,0.00012876,2]
[398289857,1765492250828,-500.0,0.00012876,2]
[398289858,1765492250837,-5007.84,0.00012876,2]
[398289859,1765492250847,-500.0,0.00012876,2]
[398289860,1765492250856,-500.0,0.00012876,2]
[398289861,1765492250866,-806.69,0.00012876,2]
[398289862,1765492250875,-500.0,0.00012876,2]
[398289863,1765492250885,-500.0,0.00012876,2]
[398289864,1765492250897,-1163.15,0.00012876,2]
[398289865,1765492250907,-1114.92,0.00012876,2]
[398289866,1765492250918,-500.0,0.00012876,2]
[398289867,1765492250929,-500.0,0.00012876,2]
[398289868,1765492250939,-500.0,0.00012876,2]
[398289869,1765492250948,-500.0,0.00012876,2]
[398289870,1765492250959,-500.0,0.00012876,2]
[398289871,1765492250968,-500.0,0.00012876,2]
[398289872,1765492250978,-862.99,0.00012876,2]
[398289873,1765492250987,-1608.38,0.00012876,2]
[398289874,1765492250997,-500.0,0.00012876,2]
[398289875,1765492251006,-500.0,0.00012876,2]
[398289876,1765492251016,-1830.43,0.00012876,2]
[398289877,1765492251025,-500.0,0.00012876,2]
[398289878,1765492251035,-500.0,0.00012876,2]
[398289879,1765492251044,-8261.9,0.00012876,2]
[398289880,1765492251055,-2805.24,0.00012876,2]
[398289881,1765492251065,-1110.76,0.00012876,2]
[398289882,1765492251074,-757.03,0.00012876,2]
[398289883,1765492251083,-500.0,0.00012876,2]
[398289884,1765492251105,-500.0,0.00012876,2]
[398289885,1765492251114,-2201.14,0.00012876,2]
[398289886,1765492251123,-3652.92,0.00012876,2]
[398289887,1765492251132,-1050.91,0.00012876,2]
[398289888,1765492251142,-500.0,0.00012876,2]
[398289889,1765492251151,-500.0,0.00012876,2]
[398289890,1765492251164,-500.0,0.00012876,2]
[398289891,1765492251180,-2961.1,0.00012876,2]
[398289892,1765492251191,-24713.72,0.00012876,2]
[398289893,1765492251201,-500.0,0.00012876,2]
[398289894,1765492251212,-500.0,0.00012876,2]
[398289895,1765492251221,-3786.78,0.00012876,2]
[398289896,1765492251230,-3492.07,0.00012876,2]
[398289897,1765492251242,-500.0,0.00012876,2]
[398289898,1765492251251,-500.0,0.00012876,2]
[398289899,1765492251261,-218.36,0.00012876,2]
[398289900,1765492251270,-1732.46,0.00012876,2]
[398289901,1765492251279,-500.0,0.00012876,2]
[398289902,1765492251288,-500.0,0.00012876,2]
[398289903,1765492251297,-500.0,0.00012876,2]
[398289904,1765492251306,-1810.58,0.00012876,2]
[398289905,1765492251316,-500.0,0.00012876,2]
[398289906,1765492251326,-1033.63,0.00012876,2]
[398289907,1765492251335,-939.32,0.00012876,2]
[398289908,1765492251345,-5600.19,0.00012876,2]
[398289909,1765492251354,-500.0,0.00012876,2]
[398289910,1765492251363,-500.0,0.00012876,2]
[398289911,1765492251372,-2049.99,0.00012876,2]
[398289912,1765492251381,-500.0,0.00012876,2]
[398289913,1765492251391,-1521.09,0.00012876,2]
[398289914,1765492251400,-500.0,0.00012876,2]
[398289915,1765492251410,-568.52,0.00012876,2]
[398289916,1765492251419,-500.0,0.00012876,2]
[398289917,1765492251428,-500.0,0.00012876,2]
[398289918,1765492251437,-781.85,0.00012876,2]
[398289919,1765492251446,-500.0,0.00012876,2]
[398289920,1765492251455,-766.63,0.00012876,2]
[398289921,1765492251465,-2284.67,0.00012876,2]
[398289922,1765492251474,-500.0,0.00012876,2]
[398289923,1765492251483,-2304.75,0.00012876,2]
[398289924,1765492251493,-500.0,0.00012876,2]
[398289925,1765492251502,-500.0,0.00012876,2]
[398289926,1765492251511,-929.73,0.00012876,2]
[398289927,1765492251522,-500.0,0.00012876,2]
[398289928,1765492251531,-2874.7,0.00012876,2]
[398289929,1765492251541,-500.0,0.00012876,2]
[398289930,1765492251550,-1509.43,0.00012876,2]
[398289931,1765492251559,-1634.28,0.00012876,2]
[398289932,1765492251568,-500.0,0.00012876,2]
[398289933,1765492251578,-462.09041016,0.00012876,2]
[398289934,1765492251587,-7212.13,0.00012876,2]
[398289935,1765492251596,-500.0,0.00012876,2]
[398289936,1765492251605,-500.0,0.00012876,2]
[398289937,1765492251614,-3102.79,0.00012876,2]
[398289938,1765492251623,-5002.26,0.00012876,2]
[398289939,1765492251632,-605.26,0.00012876,2]
[398289940,1765492251641,-500.0,0.00012876,2]
[398289941,1765492251650,-638.16841744,0.00012876,2]
[398289942,1765492251659,-500.0,0.00012876,2]
[398289943,1765492251668,-679.45660229,0.00012876,2]
[398289944,1765492251699,-317.9235118,0.00012876,2]
[398289945,1765492251927,-12.19988591,0.00012876,2]
[398289946,1765492251937,-302.6996199,0.00012876,2]
[398289947,1765492251948,-197.3003801,0.00012876,2]
[398289948,1765492251957,-124.3686215,0.00012876,2]
[398289949,1765492262724,150.6,8.8e-05,2]
[398289950,1765492442090,170.23,8.8e-05,2]
[398289951,1765492503672,170.23,8.8e-05,2]
[398289952,1765492743832,161.06,8.8e-05,2]
[398289953,1765492744184,161.06,9.4e-05,2]
[398289954,1765492744466,161.06,0.0001,2]
[398289955,1765492804810,25.76,8.8e-05,2]
[398289956,1765492804836,135.3,8.8e-05,2]
[398289957,1765492805446,161.06,9.7e-05,2]
[398289958,1765492826561,703.64,9.808e-05,2]
[398289972,1765493432705,-543.0,8.8e-05,2]
[398289973,1765493432716,-152.55,8.8e-05,2]
[398289974,1765493432725,-308.59839178,9.052e-05,2]
[398289975,1765493432734,-152.55,9.4e-05,2]
[398289976,1765493432744,-1034.84282044,9.7e-05,2]
[398289977,1765493432753,-634.0,9.807e-05,2]
[398289978,1765493432763,-300.0,9.807e-05,2]
[398289979,1765493432772,-12007.8799775,9.808e-05,2]
[398289980,1765493432782,-152.55,0.0001,2]
[398289981,1765493432792,-300.0,0.00010003,2]
[398289982,1765493432801,-170.52881022,0.00010003,2]
[398290093,1765493443548,-129.47118978,0.00010003,2]
[398290094,1765493443558,-300.0,0.00010003,2]
[398290096,1765493443567,-112.17881022,0.00010003,2]
[398290118,1765493443771,-187.82118978,0.00010003,2]
[398290120,1765493443781,-300.0,0.00010003,2]
[398290122,1765493443790,-300.0,0.00010003,2]
[398290124,1765493443799,-300.0,0.00010003,2]
[398290126,1765493443808,-300.0,0.00010003,2]
[398290128,1765493443818,-300.0,0.00010003,2]
[398290130,1765493443827,-300.0,0.00010003,2]
[398290132,1765493443836,-300.0,0.00010003,2]
[398290134,1765493443845,-300.0,0.00010003,2]
[398290136,1765493443855,-300.0,0.00010003,2]
[398290138,1765493443864,-300.0,0.00010003,2]
[398290140,1765493443873,-300.0,0.00010003,2]
[398290142,1765493443883,-1154.59932201,0.00010003,2]
[398290144,1765493443892,-600.0,0.00010202,2]
[398290146,1765493443902,-152.55,0.000105,2]
[398290148,1765493443912,-2412.98406845,0.00010659,2]
[398290150,1765493443922,-420.0,0.00010788,2]
[398290152,1765493443931,-151.0,0.00010952,2]
[398290154,1765493443940,-364.1461023,0.00011052,2]
[398290156,1765493443949,-152.55,0.000111,2]
[398290158,1765493443958,-720.0,0.00011222,2]
[398290160,1765493443967,-290.67934049,0.00011331,2]
[398290162,1765493443976,-151.0,0.000115,2]
[398290164,1765493443985,-334.0,0.00011588,2]
[398290166,1765493443993,-334.0,0.00011588,2]
[398290168,1765493444003,-334.0,0.00011588,2]
[398290170,1765493444012,-334.0,0.00011588,2]
[398290172,1765493444020,-334.0,0.00011588,2]
[398290173,1765493444030,-334.0,0.00011588,2]
[398290175,1765493444040,-334.0,0.00011588,2]
[398290177,1765493444049,-334.0,0.00011588,2]
[398290179,1765493444059,-334.0,0.00011588,2]
[398290181,1765493444068,-334.0,0.00011588,2]
[398290183,1765493444077,-334.0,0.00011588,2]
[398290185,1765493444087,-339.39180417,0.00011588,2]
[398290187,1765493444097,-5633.0489309,0.00011601,2]
[398290189,1765493444106,-152.55,0.000117,2]
[398290191,1765493444116,-587.0,0.00011867,2]
[398290193,1765493444125,-151.0,0.00012048,2]
[398290195,1765493444135,-151.0,0.000121,2]
[398290197,1765493444144,-290.67934049,0.0001216,2]
[398290199,1765493444154,-295.30641892,0.00012227,2]
[398290201,1765493444164,-151.0,0.000123,2]
[398290203,1765493444173,-152.55,0.000123,2]
[398290205,1765493444182,-397.715535,0.00012329,2]
[398290207,1765493444192,-397.715535,0.00012329,2]
[398290209,1765493444201,-397.1162519,0.00012329,2]
[398290211,1765493444212,-397.715535,0.00012329,2]
[398290213,1765493444222,-397.715535,0.00012329,2]
[398290215,1765493444231,-397.715535,0.00012329,2]
[398290217,1765493444241,-864.0,0.00012344,2]
[398290219,1765493444251,-2156.0,0.0001237,2]
[398290221,1765493444261,-1360.0,0.0001237,2]
[398290222,1765493444270,-631.0,0.0001237,2]
[398290224,1765493444280,-415.0,0.0001237,2]
[398290226,1765493444290,-151.0,0.000125,2]
[398290228,1765493444299,-151.0,0.00012596,2]
[398290230,1765493444308,-151.0,0.000127,2]
[398290232,1765493444317,-152.55,0.000128,2]
[398290234,1765493444327,-3935.94506004,0.0001284,2]
[398290236,1765493444336,-500.0,0.00012874,2]
[398290237,1765493444345,-500.0,0.00012874,2]
[398290238,1765493444354,-500.0,0.00012874,2]
[398290239,1765493444364,-347.00686747,0.00012874,2]
[398290240,1765493444373,-240.35818751,0.00012875,2]
[398290241,1765493444383,-500.0,0.00012875,2]
[398290242,1765493444392,-500.0,0.00012875,2]
[398290243,1765493444402,-500.0,0.00012875,2]
[398290244,1765493444411,-589.77138737,0.00012875,2]
[398290245,1765493444420,-500.0,0.00012875,2]
[398290246,1765493444430,-500.0,0.00012875,2]
[398290247,1765493444440,-500.0,0.00012875,2]
[398290248,1765493444449,-500.0,0.00012875,2]
[398290249,1765493444459,-500.0,0.00012876,2]
[398290250,1765493444469,-500.0,0.00012876,2]
[398290251,1765493444478,-500.0,0.00012876,2]
[398290252,1765493444488,-500.0,0.00012876,2]
[398290253,1765493444498,-717.84,0.00012876,2]
[398290254,1765493444507,-500.0,0.00012876,2]
[398290255,1765493444517,-500.0,0.00012876,2]
[398290256,1765493444527,-500.0,0.00012876,2]
[398290257,1765493444539,-500.0,0.00012876,2]
[398290258,1765493444548,-1113.65,0.00012876,2]
[398290259,1765493444558,-1419.46,0.00012876,2]
[398290260,1765493444568,-616.04,0.00012876,2]
[398290261,1765493444578,-500.0,0.00012876,2]
[398290262,1765493444588,-533.94,0.00012876,2]
[398290263,1765493444598,-838.14,0.00012876,2]
[398290264,1765493444608,-500.0,0.00012876,2]
[398290265,1765493444619,-933.58,0.00012876,2]
[398290266,1765493444628,-500.0,0.00012876,2]
[398290267,1765493444638,-500.0,0.00012876,2]
[398290268,1765493444648,-500.0,0.00012876,2]
[398290269,1765493444658,-481.42372808,0.00012876,2]
[398290270,1765493444667,-500.0,0.00012876,2]
[398290271,1765493444678,-500.0,0.00012876,2]
[398290272,1765493444688,-500.0,0.00012876,2]
[398290273,1765493444698,-979.97,0.00012876,2]
[398290274,1765493444707,-500.0,0.00012876,2]
[398290275,1765493444717,-503.03201831,0.00012876,2]
[398290276,1765493444727,-500.0,0.00012876,2]
[398290277,1765493444736,-500.0,0.00012876,2]
[398290278,1765493444746,-500.0,0.00012876,2]
[398290279,1765493444755,-500.0,0.00012876,2]
[398290280,1765493444765,-587.52,0.00012876,2]
[398290281,1765493444774,-604.31,0.00012876,2]
[398290282,1765493444784,-222.84923657,0.00012876,2]
[398290315,1765493446274,-233.7204,0.00012874,2]
[398290316,1765493446288,-266.2796,0.00012874,2]
[398290317,1765493446298,-500.0,0.00012874,2]
[398290318,1765493446309,-47.4852,0.00012874,2]
[398290319,1765493446324,-452.5148,0.00012874,2]
[398290320,1765493446335,-306.55996253,0.00012874,2]
[398290321,1765493446350,-193.44003747,0.00012874,2]
[398290322,1765493446359,-128.22896413,0.00012874,2]
[398290323,1765493446371,-161.31575785,0.00012874,2]
[398290325,1765493446381,-500.0,0.00012874,2]
[398290327,1765493446392,-500.0,0.00012874,2]
[398290329,1765493446401,-500.0,0.00012874,2]
[398290331,1765493446411,-500.0,0.00012874,2]
[398290334,1765493446426,-500.0,0.00012874,2]
[398290336,1765493446436,-184.315897,0.00012874,2]
[398290337,1765493446448,-315.684103,0.00012874,2]
[398290338,1765493446458,-425.38293311,0.00012874,2]
[398290424,1765493454520,150.0,6.658e-05,2]
[398290425,1765493454943,150.0,6.975e-05,2]
[398290452,1765494632508,-151.03,8.8e-05,2]
[398290454,1765494632518,-311.74604877,8.9e-05,2]
[398290456,1765494632529,-151.03,9e-05,2]
[398290458,1765494632539,-151.03,9.2e-05,2]
[398290460,1765494632548,-151.03,9.4e-05,2]
[398290462,1765494632557,-151.03,9.6e-05,2]
[398290463,1765494632567,-151.03,9.8e-05,2]
[398290464,1765494632577,-300.0,9.999e-05,2]
[398290465,1765494632587,-10000.0,0.0001,2]
[398290466,1765494632596,-151.03,0.0001,2]
[398290467,1765494632606,-2960.88044782,0.00010199,2]
[398290468,1765494632616,-300.0,0.00010199,2]
[398290469,1765494632626,-300.0,0.00010199,2]
[398290470,1765494632635,-300.0,0.00010199,2]
[398290471,1765494632645,-300.0,0.00010199,2]
[398290472,1765494632654,-300.0,0.00010199,2]
[398290473,1765494632664,-300.0,0.00010199,2]
[398290474,1765494632674,-300.0,0.00010199,2]
[398290475,1765494632683,-300.0,0.00010199,2]
[398290476,1765494632692,-300.0,0.00010199,2]
[398290477,1765494632702,-300.0,0.00010199,2]
[398290478,1765494632711,-300.0,0.00010199,2]
[398290479,1765494632722,-300.0,0.00010199,2]
[398290480,1765494632732,-300.0,0.00010199,2]
[398290482,1765494632741,-300.0,0.00010199,2]
[398290484,1765494632751,-300.0,0.00010199,2]
[398290486,1765494632761,-151.03,0.000103,2]
[398290488,1765494632771,-222.50637138,0.0001035,2]
[398290490,1765494632780,-151.03,0.000105,2]
[398290492,1765494632789,-351.89826127,0.00010558,2]
[398290495,1765494632812,-56.45871568,0.00010558,2]
[398290497,1765494632821,-12786.6235143,0.00010559,2]
[398290538,1765494638276,-500.0,0.00010558,2]
[398290539,1765494638286,-211.02630224,0.00010558,2]
[398290540,1765494638296,-269.2526528,0.00010559,2]
[398290541,1765494638307,-7760.19639879,0.00010559,2]
[398290542,1765494638332,-397.54104496,0.00010559,2]
[398290546,1765494640504,-1050.74061597,0.00010559,2]
[398290548,1765494643439,-26000.0,0.00010559,2]
[398290555,1765494646271,-193.89872597,0.00010235,2]
[398290556,1765494646280,-115.55191931,0.00010559,2]
[398290557,1765494646295,-331.648,0.00010559,2]
[398290558,1765494646321,-2157.02,0.00010559,2]
[398290561,1765495562083,156.57217215,8.68e-05,2]
[398290582,1765495832374,-543.0,8.8e-05,2]
[398290583,1765495832384,-151.38,8.8e-05,2]
[398290584,1765495832392,-111.81976818,8.8e-05,2]
[398290593,1765495838400,-39.48023182,8.8e-05,2]
[398290594,1765495838409,-151.38,9e-05,2]
[398290595,1765495838418,-5980.626878,9.046e-05,2]
[398290596,1765495838427,-151.38,9.3e-05,2]
[398290597,1765495838436,-855.0,9.306e-05,2]
[398290598,1765495838444,-325.87318876,9.307e-05,2]
[398290599,1765495838454,-160.0,9.323e-05,2]
[398290600,1765495838462,-300.0,9.323e-05,2]
[398290601,1765495838471,-294.0,9.323e-05,2]
[398290602,1765495838480,-1929.46436948,9.324e-05,2]
[398290603,1765495838489,-151.38,9.5e-05,2]
[398290604,1765495838498,-300.0,9.509e-05,2]
[398290605,1765495838507,-300.0,9.509e-05,2]
[398290606,1765495838516,-300.0,9.509e-05,2]
[398290607,1765495838525,-300.0,9.509e-05,2]
[398290608,1765495838533,-300.0,9.509e-05,2]
[398290609,1765495838542,-300.0,9.509e-05,2]
[398290611,1765495838551,-300.0,9.509e-05,2]
[398290613,1765495838559,-300.0,9.509e-05,2]
[398290614,1765495838568,-300.0,9.509e-05,2]
[398290615,1765495838577,-300.0,9.509e-05,2]
[398290616,1765495838586,-300.0,9.509e-05,2]
[398290617,1765495838595,-300.0,9.509e-05,2]
[398290618,1765495838604,-300.0,9.509e-05,2]
[398290619,1765495838613,-300.0,9.509e-05,2]
[398290620,1765495838623,-300.0,9.509e-05,2]
[398290621,1765495838632,-1154.59932201,9.509e-05,2]
[398290622,1765495838641,-151.38,9.8e-05,2]
[398290623,1765495838650,-151.38,0.0001,2]
[398290624,1765495838659,-10000.0,0.0001,2]
[398290625,1765495838668,-478.95018136,0.00010221,2]
[398290626,1765495838677,-420.0,0.00010255,2]
[398290627,1765495838686,-151.38,0.000103,2]
[398290628,1765495838695,-500.0,0.0001033,2]
[398290629,1765495838704,-166.40250554,0.000104,2]
[398290630,1765495838713,-600.0,0.00010401,2]
[398290631,1765495838722,-523.51160194,0.00010458,2]
[398290633,1765495838731,-500.0,0.00010458,2]
[398290634,1765495838740,-309.24210299,0.00010458,2]
[398290636,1765495838749,-194.57106239,0.00010458,2]
[398290637,1765495838758,-500.0,0.00010458,2]
[398290639,1765495838767,-500.0,0.00010458,2]
[398290641,1765495838777,-500.0,0.00010458,2]
[398290642,1765495838786,-569.9006304,0.00010458,2]
[398290643,1765495838795,-59056.18167971,0.00010459,2]
[398290644,1765495838806,-607.05199346,0.00010459,2]
[398290647,1765495838835,-19532.11915625,0.00010459,2]
[398290648,1765495838846,-1165.76805551,0.00010459,2]
[398290664,1765495840585,-20847.0292,0.00010459,2]
[398290665,1765495840596,-616.53028409,0.00010459,2]
[398290666,1765495840607,-872.29,0.00010459,2]
[398290679,1765495843735,-36720.84998526,0.00010459,2]
[398290680,1765495843746,-1412.0,0.00010459,2]
[398290682,1765495844512,-12011.82456332,0.00010459,2]
[398290683,1765495844524,-296.04,0.00010459,2]
[398290685,1765495846490,-61051.524013,0.00010459,2]
[398290686,1765495846502,-438.32801206,0.00010459,2]
[398290687,1765495846516,-126787.62390108,0.00010459,2]
[398290688,1765495846525,-151.38,0.000105,2]
[398290689,1765495846534,-151.0,0.00010505,2]
[398290690,1765495846543,-500.0,0.0001051,2]
[398290691,1765495846552,-500.0,0.00010511,2]
[398290692,1765495846561,-6649.8686395,0.00010511,2]
[398290693,1765495846570,-10320.28950246,0.00010511,2]
[398290767,1765496978677,199.0,0.00019,120]
[398290794,1765497031647,-336.67339981,8.791e-05,2]
[398290796,1765497031656,-261.84,8.791e-05,2]
[398290799,1765497031665,-151.38,8.8e-05,2]
[398290800,1765497031675,-151.38,9.2e-05,2]
[398290803,1765497031684,-101.04228744,9.7e-05,2]
[398291034,1765497037622,-50.33771256,9.7e-05,2]
[398291035,1765497037632,-300.0,9.814e-05,2]
[398291036,1765497037641,-447.36432875,9.815e-05,2]
[398291037,1765497037650,-125.7296866,9.815e-05,2]
[398291038,1765497037682,-322.24925186,9.815e-05,2]
[398291039,1765497037693,-357.27685329,9.815e-05,2]
[398291040,1765497037702,-1431.565852,9.815e-05,2]
[398291041,1765497037711,-1604.43436263,9.815e-05,2]
[398291049,1765497042795,-632.38728112,9.815e-05,2]
[398291050,1765497042805,-9335.0,0.0001,2]
[398291051,1765497042814,-151.38,0.000101,2]
[398291052,1765497042824,-479.97459101,0.0001012,2]
[398291053,1765497042833,-311.3744292,0.00010331,2]
[398291054,1765497042843,-560.47397256,0.00010331,2]
[398291055,1765497042853,-996.39817345,0.00010331,2]
[398291056,1765497042862,-1555.31527386,0.00010331,2]
[398291057,1765497042871,-552.29911976,0.000104,2]
[398291058,1765497042880,-500.0,0.00010435,2]
[398291059,1765497042889,-7666.8432545,0.00010436,2]
[398291060,1765497042899,-156.8599172,0.00010436,2]
[398291061,1765497042908,-453.7159297,0.00010436,2]
[398291063,1765497042917,-4506.0757039,0.00010436,2]
[398291064,1765497042930,-846.2291176,0.00010436,2]
[398291065,1765497042939,-151.0,0.00010453,2]
[398291066,1765497042948,-151.0,0.00010453,2]
[398291067,1765497042957,-500.0,0.00010458,2]
[398291068,1765497042967,-500.0,0.00010458,2]
[398291069,1765497042976,-486.20006339,0.00010458,2]
[398291095,1765497045674,-13.79993661,0.00010458,2]
[398291096,1765497045685,-500.0,0.00010458,2]
[398291097,1765497045695,-500.0,0.00010458,2]
[398291098,1765497045704,-500.0,0.00010458,2]
[398291099,1765497045714,-500.0,0.00010458,2]
[398291100,1765497045723,-500.0,0.00010458,2]
[398291101,1765497045733,-500.0,0.00010458,2]
[398291102,1765497045742,-500.0,0.00010458,2]
[398291103,1765497045752,-500.0,0.00010458,2]
[398291104,1765497045761,-500.0,0.00010458,2]
[398291105,1765497045771,-500.0,0.00010458,2]
[398291106,1765497045780,-500.0,0.00010458,2]
[398291107,1765497045789,-500.0,0.00010458,2]
[398291108,1765497045799,-500.0,0.00010458,2]
[398291109,1765497045810,-500.0,0.00010458,2]
[398291110,1765497045819,-500.0,0.00010458,2]